Workbook

Sheet Šeimos biudžetas
B1: SMITŲ ŠEIMOS BIUDŽETAS
B2: METAI: | C2: 2013
B4: GALIMI GRYNIEJI PINIGAI | C4: SAU | D4: VAS | E4: KOV | F4: BAL | G4: GEG | H4: BIR | I4: LIE | J4: RGP | K4: RGS | L4: SPL | M4: LAP | N4: GRD | O4: BENDROJI SUMA NUO METŲ PRADŽIOS | P4: TENDENCIJA
B5: Kiekvieno mėnesio grynieji pinigai | C5: =tblPajamos[[#Totals],[SAU]]-tblIšlaidos[[#Totals],[SAU]] -> 1,220.00 Lt | D5: =tblPajamos[[#Totals],[VAS]]-tblIšlaidos[[#Totals],[VAS]] -> 1,587.00 Lt | E5: =tblPajamos[[#Totals],[KOV]]-tblIšlaidos[[#Totals],[KOV]] -> 1,174.00 Lt | F5: =tblPajamos[[#Totals],[BAL]]-tblIšlaidos[[#Totals],[BAL]] -> 1,445.00 Lt | G5: =tblPajamos[[#Totals],[GEG]]-tblIšlaidos[[#Totals],[GEG]] -> 1,391.00 Lt | H5: =tblPajamos[[#Totals],[BIR]]-tblIšlaidos[[#Totals],[BIR]] -> 1,434.00 Lt | I5: =tblPajamos[[#Totals],[LIE]]-tblIšlaidos[[#Totals],[LIE]] -> 1,085.00 Lt | J5: =tblPajamos[[#Totals],[RGP]]-tblIšlaidos[[#Totals],[RGP]] -> 1,181.00 Lt | K5: =tblPajamos[[#Totals],[RGS]]-tblIšlaidos[[#Totals],[RGS]] -> 1,445.00 Lt | L5: =tblPajamos[[#Totals],[SPL]]-tblIšlaidos[[#Totals],[SPL]] -> 1,466.00 Lt | M5: =tblPajamos[[#Totals],[LAP]]-tblIšlaidos[[#Totals],[LAP]] -> 0.00 Lt | N5: =tblPajamos[[#Totals],[GRD]]-tblIšlaidos[[#Totals],[GRD]] -> 0.00 Lt | O5: =tblPajamos[[#Totals],[BENDROJI SUMA NUO METŲ PRADŽIOS]]-tblIšlaidos[[#Totals],[BENDROJI SUMA NUO METŲ PRADŽIOS]] -> 13,428.00 Lt
B7: PAJAMŲ TIPAS | C7: SAU | D7: VAS | E7: KOV | F7: BAL | G7: GEG | H7: BIR | I7: LIE | J7: RGP | K7: RGS | L7: SPL | M7: LAP | N7: GRD | O7: BENDROJI SUMA NUO METŲ PRADŽIOS | P7: TENDENCIJA
B8: 1 pajamos | C8: 4,000.00 Lt | D8: 4,410.00 Lt | E8: 4,019.00 Lt | F8: 4,263.00 Lt | G8: 4,123.00 Lt | H8: 4,308.00 Lt | I8: 4,162.00 Lt | J8: 4,165.00 Lt | K8: 4,248.00 Lt | L8: 4,324.00 Lt | O8: =SUM(tblPajamos[[#This Row],[SAU]:[GRD]]) -> 42,022.00 Lt
B9: 2 pajamos | C9: 275.00 Lt | D9: 296.00 Lt | E9: 251.00 Lt | F9: 269.00 Lt | G9: 252.00 Lt | H9: 252.00 Lt | I9: 262.00 Lt | J9: 258.00 Lt | K9: 296.00 Lt | L9: 270.00 Lt | O9: =SUM(tblPajamos[[#This Row],[SAU]:[GRD]]) -> 2,681.00 Lt
B10: Kitos pajamos | C10: 500.00 Lt | D10: 507.00 Lt | E10: 551.00 Lt | F10: 556.00 Lt | G10: 588.00 Lt | H10: 534.00 Lt | I10: 533.00 Lt | J10: 585.00 Lt | K10: 560.00 Lt | L10: 520.00 Lt | O10: =SUM(tblPajamos[[#This Row],[SAU]:[GRD]]) -> 5,434.00 Lt
B11: BENDROJI PAJAMŲ SUMA | C11: =SUBTOTAL(109,tblPajamos[SAU]) -> 4,775.00 Lt | D11: =SUBTOTAL(109,tblPajamos[VAS]) -> 5,213.00 Lt | E11: =SUBTOTAL(109,tblPajamos[KOV]) -> 4,821.00 Lt | F11: =SUBTOTAL(109,tblPajamos[BAL]) -> 5,088.00 Lt | G11: =SUBTOTAL(109,tblPajamos[GEG]) -> 4,963.00 Lt | H11: =SUBTOTAL(109,tblPajamos[BIR]) -> 5,094.00 Lt | I11: =SUBTOTAL(109,tblPajamos[LIE]) -> 4,957.00 Lt | J11: =SUBTOTAL(109,tblPajamos[RGP]) -> 5,008.00 Lt | K11: =SUBTOTAL(109,tblPajamos[RGS]) -> 5,104.00 Lt | L11: =SUBTOTAL(109,tblPajamos[SPL]) -> 5,114.00 Lt | M11: =SUBTOTAL(109,tblPajamos[LAP]) -> 0.00 Lt | N11: =SUBTOTAL(109,tblPajamos[GRD]) -> 0.00 Lt | O11: =SUBTOTAL(109,tblPajamos[BENDROJI SUMA NUO METŲ PRADŽIOS]) -> 50,137.00 Lt
B13: IŠLAIDOS | C13: SAU | D13: VAS | E13: KOV | F13: BAL | G13: GEG | H13: BIR | I13: LIE | J13: RGP | K13: RGS | L13: SPL | M13: LAP | N13: GRD | O13: BENDROJI SUMA NUO METŲ PRADŽIOS | P13: TENDENCIJA
B14: Būstas | C14: 1,500.00 Lt | D14: 1,500.00 Lt | E14: 1,500.00 Lt | F14: 1,500.00 Lt | G14: 1,500.00 Lt | H14: 1,500.00 Lt | I14: 1,500.00 Lt | J14: 1,500.00 Lt | K14: 1,500.00 Lt | L14: 1,500.00 Lt | O14: =SUM(tblIšlaidos[[#This Row],[SAU]:[GRD]]) -> 15,000.00 Lt
B15: Maisto prekės | C15: 250.00 Lt | D15: 331.00 Lt | E15: 299.00 Lt | F15: 333.00 Lt | G15: 324.00 Lt | H15: 313.00 Lt | I15: 338.00 Lt | J15: 225.00 Lt | K15: 258.00 Lt | L15: 322.00 Lt | O15: =SUM(tblIšlaidos[[#This Row],[SAU]:[GRD]]) -> 2,993.00 Lt
B16: Mokestis už mašiną | C16: 345.00 Lt | D16: 345.00 Lt | E16: 345.00 Lt | F16: 345.00 Lt | G16: 345.00 Lt | H16: 345.00 Lt | I16: 345.00 Lt | J16: 345.00 Lt | K16: 345.00 Lt | L16: 345.00 Lt | O16: =SUM(tblIšlaidos[[#This Row],[SAU]:[GRD]]) -> 3,450.00 Lt
B17: Draudimas | C17: 120.00 Lt | D17: 120.00 Lt | E17: 120.00 Lt | F17: 120.00 Lt | G17: 120.00 Lt | H17: 120.00 Lt | I17: 120.00 Lt | J17: 120.00 Lt | K17: 120.00 Lt | L17: 120.00 Lt | O17: =SUM(tblIšlaidos[[#This Row],[SAU]:[GRD]]) -> 1,200.00 Lt
B18: Namų telefonas | C18: 50.00 Lt | D18: 50.00 Lt | E18: 50.00 Lt | F18: 50.00 Lt | G18: 50.00 Lt | H18: 50.00 Lt | I18: 50.00 Lt | J18: 50.00 Lt | K18: 50.00 Lt | L18: 50.00 Lt | O18: =SUM(tblIšlaidos[[#This Row],[SAU]:[GRD]]) -> 500.00 Lt
B19: Mobilusis telefonas | C19: 72.00 Lt | D19: 70.00 Lt | E19: 80.00 Lt | F19: 70.00 Lt | G19: 75.00 Lt | H19: 80.00 Lt | I19: 90.00 Lt | J19: 73.00 Lt | K19: 75.00 Lt | L19: 70.00 Lt | O19: =SUM(tblIšlaidos[[#This Row],[SAU]:[GRD]]) -> 755.00 Lt
B20: Kabelinė televizija | C20: 60.00 Lt | D20: 63.00 Lt | E20: 65.00 Lt | F20: 60.00 Lt | G20: 65.00 Lt | H20: 60.00 Lt | I20: 63.00 Lt | J20: 60.00 Lt | K20: 63.00 Lt | L20: 60.00 Lt | O20: =SUM(tblIšlaidos[[#This Row],[SAU]:[GRD]]) -> 619.00 Lt
B21: Internetas | C21: 45.00 Lt | D21: 45.00 Lt | E21: 45.00 Lt | F21: 45.00 Lt | G21: 45.00 Lt | H21: 45.00 Lt | I21: 45.00 Lt | J21: 45.00 Lt | K21: 45.00 Lt | L21: 45.00 Lt | O21: =SUM(tblIšlaidos[[#This Row],[SAU]:[GRD]]) -> 450.00 Lt
B22: Elektros energija | C22: 155.00 Lt | D22: 155.00 Lt | E22: 158.00 Lt | F22: 160.00 Lt | G22: 165.00 Lt | H22: 200.00 Lt | I22: 340.00 Lt | J22: 350.00 Lt | K22: 240.00 Lt | L22: 180.00 Lt | O22: =SUM(tblIšlaidos[[#This Row],[SAU]:[GRD]]) -> 2,103.00 Lt
B23: Vanduo | C23: 35.00 Lt | D23: 35.00 Lt | E23: 37.00 Lt | F23: 39.00 Lt | G23: 45.00 Lt | H23: 42.00 Lt | I23: 42.00 Lt | J23: 36.00 Lt | K23: 38.00 Lt | L23: 40.00 Lt | O23: =SUM(tblIšlaidos[[#This Row],[SAU]:[GRD]]) -> 389.00 Lt
B24: Dujos | C24: 50.00 Lt | D24: 45.00 Lt | E24: 40.00 Lt | F24: 40.00 Lt | G24: 42.00 Lt | H24: 50.00 Lt | I24: 55.00 Lt | J24: 40.00 Lt | K24: 43.00 Lt | L24: 30.00 Lt | O24: =SUM(tblIšlaidos[[#This Row],[SAU]:[GRD]]) -> 435.00 Lt
B25: Pramogos | C25: 123.00 Lt | D25: 92.00 Lt | E25: 58.00 Lt | F25: 131.00 Lt | G25: 46.00 Lt | H25: 105.00 Lt | I25: 84.00 Lt | J25: 108.00 Lt | K25: 132.00 Lt | L25: 136.00 Lt | O25: =SUM(tblIšlaidos[[#This Row],[SAU]:[GRD]]) -> 1,015.00 Lt
B26: Mokestis už mokslą | C26: 550.00 Lt | D26: 550.00 Lt | E26: 550.00 Lt | F26: 550.00 Lt | G26: 550.00 Lt | H26: 550.00 Lt | I26: 550.00 Lt | J26: 550.00 Lt | K26: 550.00 Lt | L26: 550.00 Lt | O26: =SUM(tblIšlaidos[[#This Row],[SAU]:[GRD]]) -> 5,500.00 Lt
B27: Santaupos | C27: 200.00 Lt | D27: 225.00 Lt | E27: 300.00 Lt | F27: 200.00 Lt | G27: 200.00 Lt | H27: 200.00 Lt | I27: 250.00 Lt | J27: 325.00 Lt | K27: 200.00 Lt | L27: 200.00 Lt | O27: =SUM(tblIšlaidos[[#This Row],[SAU]:[GRD]]) -> 2,300.00 Lt
B28: BENDROJI IŠLAIDŲ SUMA | C28: =SUBTOTAL(109,tblIšlaidos[SAU]) -> 3,555.00 Lt | D28: =SUBTOTAL(109,tblIšlaidos[VAS]) -> 3,626.00 Lt | E28: =SUBTOTAL(109,tblIšlaidos[KOV]) -> 3,647.00 Lt | F28: =SUBTOTAL(109,tblIšlaidos[BAL]) -> 3,643.00 Lt | G28: =SUBTOTAL(109,tblIšlaidos[GEG]) -> 3,572.00 Lt | H28: =SUBTOTAL(109,tblIšlaidos[BIR]) -> 3,660.00 Lt | I28: =SUBTOTAL(109,tblIšlaidos[LIE]) -> 3,872.00 Lt | J28: =SUBTOTAL(109,tblIšlaidos[RGP]) -> 3,827.00 Lt | K28: =SUBTOTAL(109,tblIšlaidos[RGS]) -> 3,659.00 Lt | L28: =SUBTOTAL(109,tblIšlaidos[SPL]) -> 3,648.00 Lt | M28: =SUBTOTAL(109,tblIšlaidos[LAP]) -> 0.00 Lt | N28: =SUBTOTAL(109,tblIšlaidos[GRD]) -> 0.00 Lt | O28: =SUBTOTAL(109,tblIšlaidos[BENDROJI SUMA NUO METŲ PRADŽIOS]) -> 36,709.00 Lt
